bitfinex/quotes_BTCUSD_20250916
["timestamp","ask_amount","ask_price","bid_price","bid_amount"]
[1758032028182,0.94650816,114990.0,114980.0,0.70294]
[1758032028399,0.94650816,114990.0,114980.0,1.11915397]
[1758032028885,0.94650816,114990.0,114980.0,0.70294]
[1758032029343,0.64490816,114990.0,114980.0,1.11915397]
[1758032029563,0.94350816,114990.0,114980.0,0.70294]
[1758032029819,0.47098,114990.0,114980.0,1.11915397]
[1758032030049,0.7695,114990.0,114980.0,0.70294]
[1758032030488,0.94342816,114990.0,114980.0,0.70294]
[1758032030705,0.94342816,114990.0,114980.0,1.11915397]
[1758032030706,0.64490816,114990.0,114980.0,1.11915397]
[1758032030920,0.47098,114990.0,114980.0,1.11915397]
[1758032031392,0.76922,114990.0,114980.0,0.70294]
[1758032031642,0.76918,114990.0,114980.0,1.11915397]
[1758032032510,0.47098,114990.0,114980.0,0.70294]
[1758032032762,0.76906,114990.0,114980.0,0.70294]
[1758032032962,0.76906,114990.0,114980.0,1.11915397]
[1758032033184,0.47098,114990.0,114980.0,0.70294]
[1758032033394,0.47098,114990.0,114980.0,1.11915397]
[1758032033610,0.77002,114990.0,114980.0,1.11915397]
[1758032033811,0.77002,114990.0,114980.0,0.70294]
[1758032034085,0.42098,114990.0,114980.0,1.53536794]
[1758032034303,0.7199,114990.0,114980.0,1.11915397]
[1758032034541,0.7199,114990.0,114980.0,1.53536794]
[1758032036942,0.7199,114990.0,114980.0,1.56149647]
[1758032037380,0.7199,114990.0,114980.0,1.96149647]
[1758032037593,0.71942,114990.0,114980.0,1.96149647]
[1758032037834,0.42098,114990.0,114980.0,1.96149647]
[1758032038052,0.7193,114990.0,114980.0,1.96149647]
[1758032038762,0.7183,114990.0,114980.0,1.98964837]
[1758032039208,0.7173,114990.0,114980.0,1.98964837]
[1758032039426,0.7173,114990.0,114980.0,1.99264837]
[1758032039637,0.7173,114990.0,114980.0,1.99164837]
[1758032039874,0.7173,114990.0,114980.0,1.52908753]
[1758032040143,0.7183,114990.0,114980.0,1.53008753]
[1758032040613,0.71814,114990.0,114980.0,1.53008753]
[1758032040825,0.41998,114990.0,114980.0,1.53008753]
[1758032041044,0.71846,114990.0,114980.0,1.53008753]
[1758032041253,0.41998,114990.0,114980.0,1.53008753]
[1758032041469,0.71842,114990.0,114980.0,1.53008753]
[1758032042586,0.41998,114990.0,114980.0,1.53008753]
[1758032042815,0.71802,114990.0,114980.0,1.53008753]
[1758032044749,0.3837,114990.0,114980.0,1.53008753]
[1758032045395,0.3837,114990.0,114980.0,1.16022043]
[1758032045682,0.3837,114990.0,114980.0,1.53008753]
[1758032045914,0.0001,115000.0,114990.0,0.54408006]
[1758032046147,0.0001,115000.0,114990.0,1.39775571]
[1758032046387,0.29778,115000.0,114990.0,1.39973571]
[1758032046651,0.33434,115020.0,115010.0,0.51389792]
[1758032046866,0.63242,115020.0,115010.0,0.97224647]
[1758032047083,0.63242,115020.0,115010.0,0.99968647]
[1758032047524,0.63242,115020.0,115010.0,1.39968647]
[1758032047753,0.08366,115030.0,115020.0,0.5440347]
[1758032047968,0.0001,115030.0,115020.0,1.02784325]
[1758032048188,0.29842,115030.0,115020.0,1.02784325]
[1758032048407,0.29842,115030.0,115020.0,1.42982325]
[1758032050256,0.29842,115030.0,115020.0,1.43182325]
[1758032050489,0.0001,115040.0,115030.0,0.54401958]
[1758032050731,0.29774,115040.0,115030.0,1.02782813]
[1758032050951,0.29774,115040.0,115030.0,1.02980813]
[1758032051395,0.29774,115040.0,115030.0,1.45592169]
[1758032051876,0.29774,115040.0,115030.0,1.52056072]
[1758032052755,0.29874,115040.0,115030.0,1.52356072]
[1758032053216,0.29974,115040.0,115030.0,1.52656072]
[1758032055578,0.0021,115040.0,115030.0,1.15669362]
[1758032055798,0.29938,115040.0,115030.0,1.52656072]
[1758032058910,0.29938,115040.0,115030.0,1.10205172]
[1758032059122,0.29938,115040.0,115030.0,1.49640882]
[1758032059345,0.29882,115040.0,115030.0,1.49640882]
[1758032060271,0.0021,115040.0,115030.0,1.50490882]
[1758032060530,0.29874,115040.0,115030.0,1.53506072]
[1758032062077,0.0021,115040.0,115030.0,1.53506072]
[1758032062331,0.0021,115040.0,115030.0,1.52656072]
[1758032063280,0.0021,115040.0,115030.0,1.15669362]
[1758032063512,0.0021,115040.0,115030.0,2.24322782]
[1758032063731,0.0021,115040.0,115030.0,2.25172782]
[1758032064202,0.0021,115040.0,115030.0,1.88186072]
[1758032064450,0.0021,115040.0,115030.0,2.25172782]
[1758032065181,0.0001,115050.0,115040.0,0.17385257]
[1758032065417,0.00024119,115050.0,115040.0,1.74432012]
[1758032065637,0.00024119,115050.0,115040.0,1.74630012]
[1758032065863,0.00024119,115050.0,115040.0,2.14630012]
[1758032066558,0.00124119,115050.0,115040.0,2.14830012]
[1758032066797,0.00024119,115050.0,115040.0,2.14830012]
[1758032067016,0.00124119,115050.0,115040.0,2.15330012]
[1758032067468,0.00124119,115050.0,115040.0,2.15130012]
[1758032067618,0.00224119,115050.0,115040.0,2.15430012]
[1758032068444,0.00224119,115050.0,115040.0,1.41456592]
[1758032068702,0.00224119,115050.0,115040.0,2.15430012]
[1758032068902,0.00224119,115050.0,115040.0,1.80766012]
[1758032069106,0.00224119,115050.0,115040.0,2.15402012]
[1758032069237,0.00224119,115050.0,115040.0,2.16285063]
[1758032069464,0.00224119,115050.0,115040.0,2.1889616]
[1758032071526,0.00224119,115050.0,115040.0,1.4492274]
[1758032071721,0.00224119,115050.0,115040.0,2.1889616]
[1758032073003,0.0001,115060.0,115050.0,0.54398936]
[1758032073260,0.0001,115060.0,115050.0,1.32407791]
[1758032073470,0.0001,115060.0,115050.0,1.32620791]
[1758032073699,0.0001,115060.0,115050.0,1.72620791]
[1758032074369,0.0011,115060.0,115050.0,1.73020791]
[1758032075927,0.33418,115080.0,115070.0,0.54367434]
[1758032075928,0.32638,115080.0,115070.0,0.54367434]
[1758032076139,0.34246915,115080.0,115070.0,0.63017579]
[1758032076442,0.34246915,115080.0,115070.0,0.63230579]
[1758032076698,0.34246915,115080.0,115070.0,0.28839869]
[1758032077000,0.34256915,115080.0,115070.0,1.05826579]
[1758032077195,0.34257668,115080.0,115070.0,1.05926579]
[1758032077412,0.34357668,115080.0,115070.0,1.06026579]
[1758032078307,0.34357668,115080.0,115070.0,0.69039869]
[1758032078534,0.34357668,115080.0,115070.0,1.03754579]
[1758032078747,0.34357668,115080.0,115070.0,1.03430579]
[1758032078994,0.34357668,115080.0,115070.0,1.06026579]
[1758032080107,0.01719668,115080.0,115070.0,1.06026579]
[1758032080372,0.01719668,115080.0,115070.0,1.40026579]
[1758032081069,0.01719668,115080.0,115070.0,1.86651937]
[1758032081293,0.01719668,115080.0,115070.0,1.79185227]
[1758032082414,0.01619668,115080.0,115070.0,1.49565227]
[1758032082636,0.01619668,115080.0,115070.0,1.79073227]
[1758032082854,0.01719668,115080.0,115070.0,1.49765227]
[1758032083413,0.01719668,115080.0,115070.0,1.52375712]
[1758032084024,0.01719668,115080.0,115070.0,2.19050422]
[1758032084251,0.01719668,115080.0,115070.0,2.19900422]
[1758032087326,0.01719668,115080.0,115070.0,1.16439002]
[1758032087525,0.0011,115080.0,115070.0,1.45911002]
[1758032087994,0.0011,115080.0,115070.0,1.82897712]
[1758032089409,0.0011,115080.0,115070.0,2.19884422]
[1758032090104,0.0001,115090.0,115080.0,1.28367824]
[1758032090384,0.01634536,115090.0,115080.0,1.69049969]
[1758032090615,0.00024189,115090.0,115080.0,1.69262969]
[1758032090861,0.00024189,115090.0,115080.0,2.09262969]
[1758032091112,0.00024189,115090.0,115080.0,2.11873046]
[1758032091583,0.00024189,115090.0,115080.0,2.11973046]
[1758032092543,0.0001,115100.0,115090.0,0.51377704]
[1758032092768,0.0001,115100.0,115090.0,1.28994559]
[1758032093025,0.0001,115100.0,115090.0,0.99823559]
[1758032093236,0.0001,115100.0,115090.0,1.29199559]
[1758032093463,0.0001,115100.0,115090.0,1.7180942]
[1758032094608,0.0001,115100.0,115090.0,1.7210942]
[1758032095079,0.0011,115100.0,115090.0,1.7250942]
[1758032096039,0.0011,115100.0,115090.0,1.7750942]
[1758032096269,0.0011,115100.0,115090.0,1.7250942]
[1758032096508,0.0011,115100.0,115090.0,1.7750942]
[1758032096744,0.0001,115110.0,115100.0,0.91378094]
[1758032096968,0.0001,115110.0,115100.0,1.31952239]
[1758032097200,0.0001,115110.0,115100.0,0.65850529]
[1758032097441,0.0001,115110.0,115100.0,1.42837239]
[1758032098151,0.0001,115110.0,115100.0,1.43037239]
[1758032099348,0.0001,115110.0,115100.0,1.06050529]
[1758032099577,0.0001,115110.0,115100.0,1.37750049]
[1758032099813,0.0001,115110.0,115100.0,1.37426049]
[1758032100068,0.0001,115110.0,115100.0,1.39904049]
[1758032100309,0.00213,115110.0,115100.0,1.00439339]
[1758032100505,0.25203685,115110.0,115100.0,0.66026339]
[1758032100745,0.26813282,115110.0,115100.0,1.00026339]
[1758032100982,0.09738597,115110.0,115100.0,0.72411953]
[1758032101228,0.09738634,115110.0,115100.0,1.09596663]
[1758032101467,0.31191634,115110.0,115100.0,1.43596663]
[1758032101697,0.31191634,115110.0,115100.0,1.09596663]
[1758032101938,0.0031,115110.0,115100.0,1.95431373]
[1758032102170,0.0031,115110.0,115100.0,2.22421373]
[1758032103331,0.0021,115110.0,115100.0,2.22421373]
[1758032103792,0.0031,115110.0,115100.0,2.22421373]
[1758032104030,0.0011,115110.0,115100.0,2.22421373]
[1758032104264,0.0001,115110.0,115100.0,2.22421373]
[1758032104478,0.0011,115110.0,115100.0,2.22421373]
[1758032104705,0.0011,115110.0,115100.0,2.22621373]
[1758032104934,0.0001,115110.0,115100.0,2.22621373]
[1758032105163,1e-08,115110.0,115100.0,2.25199373]
[1758032105403,1e-08,115110.0,115100.0,2.30199373]
[1758032105636,0.00010001,115110.0,115100.0,2.30199373]
[1758032106598,0.00010001,115110.0,115100.0,2.30209373]
[1758032106838,0.00010001,115110.0,115100.0,2.32818857]
[1758032107307,0.00010001,115110.0,115100.0,2.27818857]
[1758032107535,1e-08,115110.0,115100.0,2.32818857]
[1758032108236,0.0004,115120.0,115110.0,1.37423105]
[1758032108453,0.0004,115120.0,115110.0,1.4952725]
[1758032108691,0.0004,115120.0,115110.0,1.4973525]
[1758032108927,1e-08,115120.0,115110.0,2.2396325]
[1758032109401,1e-08,115120.0,115110.0,2.2311325]
[1758032110328,1e-08,115120.0,115110.0,1.9388525]
[1758032110555,1e-08,115120.0,115110.0,1.9398525]
[1758032110777,1e-08,115120.0,115110.0,2.2097525]
[1758032111538,1e-08,115120.0,115110.0,2.2117525]
[1758032111761,1e-08,115120.0,115110.0,2.5039525]
[1758032111993,1e-08,115120.0,115110.0,1.6736202]
[1758032112221,1e-08,115120.0,115110.0,2.5039525]
[1758032113356,1e-08,115120.0,115110.0,2.5037925]
[1758032113586,1e-08,115120.0,115110.0,1.6735602]
[1758032113816,1e-08,115120.0,115110.0,2.5038925]
[1758032114010,1e-08,115120.0,115110.0,1.6735602]
[1758032114225,1e-08,115120.0,115110.0,2.5123925]
[1758032114447,1e-08,115120.0,115110.0,2.2203525]
[1758032115184,1e-08,115120.0,115110.0,1.4161135]
[1758032115415,1e-08,115120.0,115110.0,2.2464458]
[1758032115645,1e-08,115120.0,115110.0,2.1964458]
[1758032115875,1e-08,115120.0,115110.0,2.2464458]
[1758032117501,1e-08,115120.0,115110.0,2.5384058]
[1758032118260,1e-08,115120.0,115110.0,2.5380858]
[1758032118717,1e-08,115120.0,115110.0,2.5379258]
[1758032120282,1e-08,115120.0,115110.0,2.5294258]
[1758032120523,0.0004,115130.0,115120.0,0.9288979]
[1758032120770,0.00087288,115130.0,115120.0,2.0678655]
[1758032121004,0.00087288,115130.0,115120.0,1.38487935]
[1758032121239,0.00087288,115130.0,115120.0,1.78487935]
[1758032121683,0.00087288,115130.0,115120.0,1.49361935]
[1758032121915,0.00087288,115130.0,115120.0,1.55086215]
[1758032122138,0.00187288,115130.0,115120.0,1.55386215]
[1758032123318,0.00187288,115130.0,115120.0,1.55286215]
[1758032123795,0.00187288,115130.0,115120.0,1.55486215]
[1758032124710,0.00187288,115130.0,115120.0,1.84706215]
[1758032124964,0.34508,115150.0,115140.0,1.34403388]
[1758032125199,0.34522183,115150.0,115140.0,1.43053533]
[1758032125433,0.34522183,115150.0,115140.0,1.45865533]
[1758032125681,0.34522183,115150.0,115140.0,1.85865533]
[1758032125903,0.34522183,115150.0,115140.0,1.85875533]
[1758032126139,0.00014183,115150.0,115140.0,2.16730723]
[1758032126392,0.00114183,115150.0,115140.0,1.92349499]
[1758032126625,0.00114183,115150.0,115140.0,1.99004792]
[1758032127418,0.00114183,115150.0,115140.0,2.28196792]
[1758032128467,0.70944,115170.0,115160.0,0.51367141]
[1758032128678,0.70944,115170.0,115160.0,1.04035901]
[1758032128900,0.70944,115170.0,115160.0,1.04045901]
[1758032129108,0.70944,115170.0,115160.0,1.44045901]
[1758032129948,0.70944,115170.0,115160.0,1.44245901]
[1758032130160,0.73412,115170.0,115160.0,1.41743901]
[1758032130486,0.71155,115170.0,115160.0,1.4512465]
[1758032130922,0.71155,115170.0,115160.0,1.4283065]
[1758032131066,0.70944,115170.0,115160.0,1.4512465]
[1758032131271,0.70944,115170.0,115160.0,1.4553465]
[1758032131497,0.70944,115170.0,115160.0,1.4522465]
[1758032132887,0.71462,115170.0,115160.0,1.4272265]
[1758032133102,0.7393,115170.0,115160.0,1.4272265]
[1758032133499,0.73623,115170.0,115160.0,1.4293065]
[1758032134172,0.73932,115170.0,115160.0,1.4272265]
[1758032134821,0.73958,115170.0,115160.0,1.01206035]
[1758032136139,0.41764,115170.0,115160.0,1.4323365]
[1758032136365,0.41764,115170.0,115160.0,1.4561165]
[1758032136574,0.70812,115170.0,115160.0,1.4561165]
[1758032137031,0.70804,115170.0,115160.0,1.4561165]
[1758032137249,0.70804,115170.0,115160.0,1.04095035]
[1758032137462,0.70804,115170.0,115160.0,1.4561165]
[1758032137897,0.41764,115170.0,115160.0,1.90143455]
[1758032138190,0.70828,115170.0,115160.0,1.07110225]
[1758032138377,0.70828,115170.0,115160.0,1.4862684]
[1758032138588,0.70824,115170.0,115160.0,1.4862684]
[1758032139009,0.0004,115170.0,115160.0,1.4862684]
[1758032139219,0.06148,115170.0,115160.0,1.90143455]
[1758032139647,0.06148,115170.0,115160.0,1.92751825]
[1758032139648,0.0004,115170.0,115160.0,1.92751825]
[1758032139859,0.29236,115170.0,115160.0,1.92751825]
[1758032140079,0.0004,115170.0,115160.0,1.92751825]
[1758032140305,0.29236,115170.0,115160.0,1.92751825]
[1758032140527,0.0004,115170.0,115160.0,1.92751825]
[1758032143348,0.0004,115170.0,115160.0,1.09718595]
[1758032143566,0.0004,115170.0,115160.0,1.92751825]
[1758032143786,0.0004,115170.0,115160.0,1.09718595]
[1758032144006,0.0004,115170.0,115160.0,1.5123521]
[1758032146157,0.0004,115170.0,115160.0,1.51415424]
[1758032147013,0.0004,115170.0,115160.0,1.92932039]
[1758032147859,0.08384,115190.0,115180.0,0.51364125]
[1758032148073,0.37606175,115190.0,115180.0,0.6002427]
[1758032148281,0.37606175,115190.0,115180.0,1.04429885]
[1758032148488,0.37606175,115190.0,115180.0,1.44429885]
[1758032149411,0.37606175,115190.0,115180.0,1.44125885]
[1758032150073,0.40618175,115190.0,115180.0,1.41540885]
[1758032150283,0.40718175,115190.0,115180.0,1.41540885]
[1758032150483,0.40818175,115190.0,115180.0,1.41540885]
[1758032150685,0.40300175,115190.0,115180.0,1.41747885]
[1758032150894,0.37806175,115190.0,115180.0,1.0023127]
[1758032151103,0.37806175,115190.0,115180.0,1.48319391]
[1758032151301,0.37806175,115190.0,115180.0,1.50697391]
[1758032151509,0.37706175,115190.0,115180.0,1.50697391]
[1758032151710,0.37606175,115190.0,115180.0,1.09180776]
[1758032151913,0.37606175,115190.0,115180.0,1.50797391]
[1758032152114,0.08398175,115190.0,115180.0,1.50797391]
[1758032152334,0.37626175,115190.0,115180.0,1.09584776]
[1758032152555,0.37626175,115190.0,115180.0,1.51101391]
[1758032153398,0.37626175,115190.0,115180.0,1.51001391]
[1758032153688,0.37626175,115190.0,115180.0,1.09684776]
[1758032154125,0.37626175,115190.0,115180.0,1.51201391]
[1758032154348,0.37626175,115190.0,115180.0,1.50997391]
[1758032154552,0.37626175,115190.0,115180.0,1.48923391]
[1758032154760,0.37626175,115190.0,115180.0,1.51301391]
[1758032155194,0.08398175,115190.0,115180.0,1.51301391]
[1758032155416,0.37602175,115190.0,115180.0,1.51301391]
[1758032155851,0.08398175,115190.0,115180.0,1.48619391]
[1758032156073,0.37578175,115190.0,115180.0,1.09784776]
[1758032156287,0.37578175,115190.0,115180.0,1.51301391]
[1758032157340,0.37558175,115190.0,115180.0,1.54316581]
[1758032158474,0.29198175,115190.0,115180.0,1.12799966]
[1758032158689,0.29198175,115190.0,115180.0,1.56924532]
[1758032161973,0.01,115200.0,115190.0,0.51362618]
[1758032162188,0.01,115200.0,115190.0,0.97060814]
[1758032162436,0.01,115200.0,115190.0,0.99775814]
[1758032162664,0.01,115200.0,115190.0,1.39775814]
[1758032162896,0.01,115200.0,115190.0,1.39785814]
[1758032163344,0.01,115200.0,115190.0,1.423934]
[1758032163548,0.01,115200.0,115190.0,1.428934]
[1758032164293,0.30176,115200.0,115190.0,1.428934]
[1758032164531,0.30176,115200.0,115190.0,1.092934]
[1758032164766,0.30176,115200.0,115190.0,1.432934]
[1758032165379,0.01,115200.0,115190.0,1.702834]
[1758032165599,0.27533458,115200.0,115190.0,2.07131451]
[1758032165818,0.24312,115210.0,115200.0,0.20376301]
[1758032166048,0.0838,115210.0,115200.0,1.39740548]
[1758032166268,0.3752,115210.0,115200.0,1.66740548]
[1758032166485,0.3752,115210.0,115200.0,2.06740548]
[1758032166707,0.3752,115210.0,115200.0,1.79750548]
[1758032166927,0.29124001,115210.0,115200.0,2.06740548]
[1758032167168,1e-08,115240.0,115210.0,0.17359604]
[1758032167423,0.0001,115260.0,115250.0,0.20368769]
[1758032167640,0.0001,115260.0,115250.0,1.08356965]
[1758032167641,0.00057271,115260.0,115250.0,1.08356965]
[1758032167867,0.0005,115270.0,115260.0,0.54367263]
[1758032168100,0.09308,115280.0,115270.0,0.91213809]
[1758032168334,0.0838,115290.0,115280.0,0.51349063]
[1758032168568,0.00054177,115290.0,115280.0,0.59999208]
[1758032168847,0.00262177,115290.0,115280.0,0.97062259]
[1758032169101,0.02568177,115290.0,115280.0,0.96847259]
[1758032169354,0.02870177,115290.0,115280.0,0.60876908]
[1758032169794,0.00252177,115290.0,115280.0,0.61091908]
[1758032170015,0.00252177,115290.0,115280.0,0.60876908]
[1758032170233,0.29380177,115290.0,115280.0,1.11439306]
[1758032170458,0.29380177,115290.0,115280.0,0.61091908]
[1758032170940,0.31786177,115290.0,115280.0,0.67362611]
[1758032171170,0.31786177,115290.0,115280.0,1.07577611]
[1758032171389,0.29580177,115290.0,115280.0,1.07587611]
[1758032172067,0.29580177,115290.0,115280.0,1.07372611]
[1758032172295,0.32188177,115290.0,115280.0,1.07372611]
[1758032173018,0.31886177,115290.0,115280.0,1.07587611]
[1758032174243,0.31886177,115290.0,115280.0,1.07372611]
[1758032174467,0.29580177,115290.0,115280.0,1.07587611]
[1758032175328,0.29382177,115290.0,115280.0,1.57935009]
[1758032175540,0.00254177,115290.0,115280.0,1.58252009]
[1758032175753,0.29314177,115290.0,115280.0,1.60429009]
[1758032176192,0.29314177,115290.0,115280.0,1.10081611]
[1758032176408,0.29314177,115290.0,115280.0,1.60429009]
[1758032176874,0.29314177,115290.0,115280.0,1.63757199]
[1758032177095,0.29294177,115290.0,115280.0,1.63757199]
[1758032177321,0.0004,115300.0,115290.0,0.20362748]
[1758032177542,0.0004,115300.0,115290.0,0.82378291]
[1758032177977,0.0004,115300.0,115290.0,0.32030893]
[1758032178203,0.0004,115300.0,115290.0,1.22378291]
[1758032178409,0.0004,115300.0,115290.0,1.22388291]
[1758032178621,0.0004,115300.0,115290.0,1.22588291]
[1758032179086,0.0004,115300.0,115290.0,0.72240893]
[1758032179313,0.0004,115300.0,115290.0,1.56588291]
[1758032179551,0.0004,115300.0,115290.0,1.06240893]
[1758032179780,0.0004,115300.0,115290.0,1.56588291]
[1758032179995,0.0004,115300.0,115290.0,1.56688291]
[1758032180248,0.0004,115300.0,115290.0,1.85772291]
[1758032180440,0.0004,115300.0,115290.0,1.06340893]
[1758032180670,0.0004,115300.0,115290.0,1.85768291]
[1758032181394,0.0004,115300.0,115290.0,1.85756291]
[1758032182284,0.0004,115310.0,115300.0,0.20361243]
[1758032182508,0.0004,115310.0,115300.0,0.82376786]
[1758032183100,0.0004,115310.0,115300.0,1.22376786]
[1758032183795,0.0004,115310.0,115300.0,1.22476786]
[1758032184079,0.0004,115310.0,115300.0,1.22486786]
[1758032186743,0.0004,115310.0,115300.0,1.56486786]
[1758032187138,0.0004,115310.0,115300.0,1.59091928]
[1758032188067,0.0004,115310.0,115300.0,1.88095928]
[1758032188761,0.41982,115340.0,115300.0,1.88095928]
[1758032189007,0.41982,115340.0,115330.0,0.76339084]
[1758032189008,0.44302164,115340.0,115330.0,0.76339084]
[1758032189224,0.75107649,115340.0,115330.0,0.76339084]
[1758032189449,0.41694164,115340.0,115330.0,1.10554084]
[1758032189711,0.70698164,115340.0,115330.0,1.50867084]
[1758032189932,0.70698164,115340.0,115330.0,1.39777599]
[1758032190149,0.70698164,115340.0,115330.0,1.39787599]
[1758032190371,0.08746164,115340.0,115330.0,1.42802789]
[1758032190583,0.00414164,115340.0,115330.0,1.06034876]
[1758032190801,0.00414164,115340.0,115330.0,1.42802789]
[1758032191040,0.00214164,115340.0,115330.0,1.42802789]
[1758032191275,0.00214164,115340.0,115330.0,1.06034876]
[1758032191810,0.00014164,115340.0,115330.0,1.42902789]
[1758032192044,0.08332,115360.0,115350.0,0.17338534]
[1758032192265,0.3753,115360.0,115350.0,0.96971592]
[1758032192485,0.37332,115360.0,115350.0,0.96971592]
[1758032192704,0.3753,115360.0,115350.0,1.36971592]
[1758032193412,0.00017,115370.0,115360.0,0.51337031]
[1758032193651,0.00017,115370.0,115360.0,1.02426279]
[1758032193878,0.00017,115370.0,115360.0,1.02737279]
[1758032194111,7e-05,115370.0,115360.0,0.65969366]
[1758032194343,7e-05,115370.0,115360.0,1.42737279]
[1758032194574,7e-05,115370.0,115360.0,1.42436279]
[1758032194807,0.00412,115370.0,115360.0,1.36765089]
[1758032195030,0.02766,115370.0,115360.0,0.99997176]
[1758032195282,0.02766,115370.0,115360.0,1.00097176]
[1758032195555,0.02766,115370.0,115360.0,1.06753651]
[1758032195792,0.02766,115370.0,115360.0,1.06757651]
[1758032196516,0.02776,115370.0,115360.0,1.06757651]
[1758032196764,0.59318104,115370.0,115360.0,0.5542062]
[1758032197002,0.58476332,115370.0,115360.0,0.5512062]
[1758032197240,0.21708419,115370.0,115360.0,0.1512062]
[1758032197704,0.58586332,115370.0,115360.0,0.1512062]
[1758032197927,0.72113605,115370.0,115360.0,0.1512062]
[1758032198178,0.21808419,115370.0,115360.0,0.1512062]
[1758032198634,0.72013605,115370.0,115360.0,0.1512062]
[1758032198861,0.72013605,115370.0,115360.0,0.08664145]
[1758032199081,0.72313605,115370.0,115360.0,0.08664145]
[1758032200047,0.22008419,115370.0,115360.0,0.08664145]
[1758032200285,1.01665605,115370.0,115360.0,0.08664145]
[1758032200788,0.3402889,115370.0,115360.0,0.26001176]
[1758032201028,0.3402889,115370.0,115360.0,0.08664145]
[1758032201262,0.3402889,115370.0,115360.0,0.66001176]
[1758032201718,0.3352889,115370.0,115360.0,0.66001176]
[1758032202169,0.0467289,115370.0,115360.0,0.66001176]
[1758032202396,0.34670662,115370.0,115360.0,0.72479127]
[1758032202621,0.3382889,115370.0,115360.0,0.72479127]
[1758032202849,0.3381689,115370.0,115360.0,0.72479127]
[1758032203594,0.3379689,115370.0,115360.0,0.72479127]
[1758032204050,0.0467289,115370.0,115360.0,0.72479127]
[1758032204284,0.3385689,115370.0,115360.0,0.32479127]
[1758032205227,0.3375689,115370.0,115360.0,0.32479127]
[1758032205463,0.0161389,115370.0,115360.0,0.32687127]
[1758032205697,0.3077789,115370.0,115360.0,0.75436127]
[1758032205931,0.3077789,115370.0,115360.0,0.75135127]
[1758032206410,0.0161389,115370.0,115360.0,0.75135127]
[1758032206651,0.0161389,115370.0,115360.0,1.28455503]
[1758032206882,0.2635789,115370.0,115360.0,1.62756503]
[1758032207211,0.01617052,115370.0,115360.0,1.62756503]
[1758032207892,0.01617309,115370.0,115360.0,1.12551317]
[1758032209172,0.01627309,115370.0,115360.0,1.12551317]
[1758032209790,0.01627309,115370.0,115360.0,1.06787127]
[1758032209791,0.01832309,115370.0,115360.0,1.06787127]
[1758032209996,0.04386309,115370.0,115360.0,1.06579127]
[1758032211017,0.04090309,115370.0,115360.0,1.06787127]
[1758032211229,0.04090309,115370.0,115360.0,1.06579127]
[1758032211441,0.04090309,115370.0,115360.0,1.06787127]
[1758032211659,0.01627309,115370.0,115360.0,1.06787127]
[1758032211867,0.30803309,115370.0,115360.0,1.09536127]
[1758032212498,0.30803309,115370.0,115360.0,1.07088127]
[1758032212730,0.30803309,115370.0,115360.0,1.06787127]
[1758032212935,0.01627309,115370.0,115360.0,1.60408503]
[1758032213204,0.00017,115370.0,115360.0,1.92040503]
[1758032215046,0.00017,115370.0,115360.0,1.41735317]
[1758032215305,0.00017,115370.0,115360.0,1.92040503]
[1758032215532,0.01629585,115370.0,115360.0,1.92040503]
[1758032215758,0.01629585,115370.0,115360.0,1.41735317]
[1758032215984,7e-05,115370.0,115360.0,1.92040503]
[1758032216435,7e-05,115370.0,115360.0,1.91968503]
[1758032216887,7e-05,115370.0,115360.0,1.41655317]
[1758032217117,7e-05,115370.0,115360.0,1.91960503]
[1758032219183,7e-05,115370.0,115360.0,1.62856503]
[1758032219426,7e-05,115370.0,115360.0,1.91916503]
[1758032219938,7e-05,115370.0,115360.0,2.15088279]
[1758032220174,7e-05,115370.0,115360.0,1.12551317]
[1758032220429,7e-05,115370.0,115360.0,1.49289798]
[1758032220902,7e-05,115370.0,115360.0,1.50114798]
[1758032221123,7e-05,115370.0,115360.0,1.79170798]
[1758032222243,7e-05,115370.0,115360.0,1.50114798]
[1758032222533,7e-05,115370.0,115360.0,1.79138798]
[1758032223933,7e-05,115370.0,115360.0,1.54715229]
[1758032224167,0.04636148,115370.0,115360.0,1.07429127]
[1758032224392,0.33656148,115370.0,115360.0,1.07429127]
[1758032224633,0.7499506,115370.0,115360.0,1.07429127]
[1758032225352,0.7499506,115370.0,115360.0,0.73429127]
[1758032225595,0.7498706,115370.0,115360.0,0.73429127]
[1758032225829,0.33648148,115370.0,115360.0,0.73429127]
[1758032226064,0.69552944,115370.0,115360.0,0.73429127]
[1758032226545,0.86888473,115370.0,115360.0,0.73429127]
[1758032226770,0.86888473,115370.0,115360.0,0.33429127]
[1758032227254,0.86888473,115370.0,115360.0,0.16092096]
[1758032227707,0.57876473,115370.0,115360.0,0.08764145]
[1758032227943,0.21971677,115370.0,115360.0,0.08764145]
[1758032228181,0.40540944,115370.0,115360.0,0.26101176]
[1758032228401,0.33632148,115370.0,115360.0,0.26101176]
[1758032228636,0.50967677,115370.0,115360.0,0.32516222]
[1758032228887,0.58076473,115370.0,115360.0,0.32516222]
[1758032229116,0.58076473,115370.0,115360.0,0.15179191]
[1758032229117,0.51467677,115370.0,115360.0,0.15179191]
[1758032229356,0.87372473,115370.0,115360.0,0.15179191]
[1758032229586,0.87372473,115370.0,115360.0,0.08664145]
[1758032232358,0.58376473,115370.0,115360.0,0.08664145]
[1758032232602,0.87372473,115370.0,115360.0,0.08664145]
[1758032232827,0.58376473,115370.0,115360.0,0.08664145]
[1758032233073,0.87372473,115370.0,115360.0,0.08664145]
[1758032234063,1.21372473,115370.0,115360.0,0.08664145]
[1758032234520,0.92376473,115370.0,115360.0,0.08664145]
[1758032234756,1.21372473,115370.0,115360.0,0.08664145]
[1758032234991,0.92376473,115370.0,115360.0,0.00014]
[1758032235217,1.21404473,115370.0,115360.0,0.00014]
[1758032235488,1.21404473,115370.0,115350.0,0.0001]
[1758032235489,0.17337031,115360.0,115350.0,0.0001]
[1758032235720,1.61432771,115360.0,115350.0,0.0001]
[1758032235980,1.64447771,115360.0,115350.0,0.0001]
[1758032236217,0.99514975,115360.0,115350.0,0.0001]
[1758032236445,1.28542975,115360.0,115350.0,0.0001]
[1758032236669,0.99514975,115360.0,115350.0,0.0001]
[1758032236890,1.28530975,115360.0,115350.0,0.0001]
[1758032237115,1.28522975,115360.0,115350.0,0.0001]
[1758032237371,0.99514975,115360.0,115350.0,0.08660145]
[1758032237617,1.28822975,115360.0,115350.0,0.08660145]
[1758032238139,0.99814975,115360.0,115350.0,0.08660145]
[1758032238363,0.98614975,115360.0,115350.0,0.08660145]
[1758032238605,1.27614975,115360.0,115350.0,0.08660145]
[1758032238843,0.96296031,115360.0,115350.0,0.08660145]
[1758032239078,1.27200827,115360.0,115350.0,0.25998679]
[1758032239296,1.27500827,115360.0,115350.0,0.25998679]
[1758032239519,1.27500827,115360.0,115350.0,0.65998679]